Cogmind - Beta 15 @@@ ROGUE MODE // 2025.05.27 @ 04:35:36 Player: CL-1C0 Result: Destroyed by D0-ZLQ(j) with Overtuned Pulse Rifle Performance ------------- Evolutions (0) 0 Regions Visited (3) 600 Robots Destroyed (28) 140 Value Destroyed (714) 714 Prototype IDs (7) 140 Alien Tech Used (0) 0 Bonus (950) 950 TOTAL SCORE: 2544 Bonus ------- Follower Combat Kills 165 Registered with UFD 300 Met Optimus in HQ 500 Friendly Fire -15 Cogmind --------- Core Integrity 0/250 Matter 300/300 Energy 84/100 System Corruption 0% Temperature Cool (16) Movement Hovering (120) Ox1 Location -7/Scraptown Parts ------- > --- POWER (1) -------- (None) > --- PROPULSION (2) --- Improved Hover Unit > --- UTILITY (2) ------ Scrap Suit > --- WEAPON (2) ------- Companion Sword > --- INVENTORY (5) ---- Overtuned Pulse Rifle Barrage Gun Overtuned Barrage Gun CPS Tube (2) Peak State ------------ > --- POWER ------------ Improved Deuterium Engine > --- PROPULSION ------- Armored Treads Armored Treads > --- UTILITY ---------- Scrap Suit > --- WEAPON ----------- Overtuned Barrage Gun Companion Sword > --- INVENTORY -------- Medium Treads Overtuned Pulse Rifle CPS Tube CPS Tube Deploy-a-Sentry [Rating: 29] Favorites ----------- Power Ion Engine Engine Ion Engine Power Core Light Nuclear Core Propulsion Light Treads Treads Light Treads Leg Aluminum Leg Hover Unit Improved Hover Unit Utility Large Storage Unit Device Structural Scanner Storage Large Storage Unit Processor Signal Interpreter Protection Light Armor Plating Weapon Assault Rifle Energy Gun EM Pulse Gun Energy Cannon Subdweller Beam Cannon Ballistic Gun Assault Rifle Ballistic Cannon Light Cannon Launcher Grenade Launcher Special Weapon CPS Tube Slashing Weapon Companion Sword Build | -11 -10 -10 -7 ------- Run | Yrd Mat Sub Scr Slots Evolved . | . . . . Power . | . . . . Propulsion . | . . . . Utility . | . . . . Weapon . | . . . . Parts Attached 29 | . 11 4 14 Power 5 | . 1 . 4 Engine 4 | . 1 . 3 Core 1 | . . . 1 Reactor . | . . . . Propulsion 8 | . 3 . 5 Treads 5 | . 3 . 2 Leg . | . . . . Wheel . | . . . . Hover 3 | . . . 3 Flight . | . . . . Utility 8 | . 5 1 2 Device 2 | . . 1 1 Storage 1 | . 1 . . Processor 1 | . 1 . . Hackware . | . . . . Protection 4 | . 3 . 1 Artifact . | . . . . Weapon 8 | . 2 3 3 Energy Gun . | . . . . Energy Cannon 1 | . . 1 . Ballistic Gun 3 | . . 2 1 Ballistic Cannon 1 | . 1 . . Launcher 1 | . 1 . . Special Weapon 1 | . . . 1 Impact Weapon . | . . . . Slashing Weapon 1 | . . . 1 Piercing Weapon . | . . . . Special Melee Weapon . | . . . . Unidentified Prototypes 1 | . . . 1 Parts Lost 9 | . 2 1 6 Power 3 | . 1 . 2 Propulsion 3 | . 1 . 2 Utility . | . . . . Weapon 3 | . . 1 2 Highest Loss Streak 4 | . 1 1 4 To Critical Strikes . | . . . . Average Backups 9 | 6 14 14 7 Power . | 1 1 1 . Propulsion 1 | 4 2 1 1 Utility 3 | . 4 5 2 Weapon 2 | 1 4 4 1 Tool/Special . | . . . . Unused Backups 59 | . 3 1 55 Power 5 | . . 1 4 Propulsion 9 | . . . 9 Utility 23 | . 1 . 22 Weapon 11 | . 2 . 9 Tool/Special 11 | . . . 11 Average Slot Usage (%) 95 | . 99 99 93 Engine 13 | . 13 14 13 Treads 25 | . 23 28 25 Leg 1 | . 4 . . Hover 1 | . . . 1 Device 9 | . . 13 13 Storage 12 | . 14 14 11 Processor 1 | . 4 . . Protection 2 | . 9 . . Energy Cannon 5 | . . 2 8 Ballistic Gun 11 | . 22 24 4 Ballistic Cannon 1 | . 5 . . Slashing Weapon 7 | . . . 11 Peak Build Rating 29 | 6 8 9 29 Average Rating 12 | 6 7 8 14 On Entrance 7 | 6 6 8 9 Naked Turns . | . . . . Heaviest Build 38 | 14 34 35 38 Greatest Support 40 | 20 40 40 40 Greatest Overweight (x) 1 | . 1 . 1 Average Overweight (x) . | . . . . Largest Inventory Capacity 15 | 8 15 15 15 Average Capacity 13 | 8 14 15 13 Most Carried 15 | 6 15 15 15 Average Carried 9 | 6 14 14 7 Final Capacity 15 | 8 15 15 5 Final Carried 14 | 6 14 14 4 Class Distribution -------------------- 89% | Mutant 10% | Scrapper Dominant Class ---------------- Mutant | -10/Materials Mutant | -10/Subcaves Mutant | -7/Scraptown Resources | -11 -10 -10 -7 ----------- Run | Yrd Mat Sub Scr Matter Collected 1084 | 200 524 181 179 Remotely . | . . . . Salvage Created 990 | . 665 55 270 Parts 63 | . 44 . 19 Haulers Intercepted 1 | . 1 . . Recyclers Shooed . | . . . . Parts Field Recycled . | . . . . Retrieved Matter . | . . . . Parts Self-Destructed 2 | . . 2 . Prevented . | . . . . Kills | -11 -10 -10 -7 ------- Run | Yrd Mat Sub Scr Combat Hostiles Destroyed 22 | . 16 1 5 Melee 4 | . . . 4 Guns 12 | . 11 . 1 Cannons 6 | . 5 1 . Classes Destroyed 13 | . 7 1 5 Worker 2 | . 2 . . Builder 1 | . 1 . . Tunneler 1 | . 1 . . Hauler 1 | . 1 . . Recycler 1 | . 1 . . Swarmer 6 | . 6 . . Grunt 10 | . 10 . . Subdweller 1 | . . 1 . Federalist 1 | . . . 1 Explorer 1 | . . . 1 Ranger 1 | . . . 1 Guru 1 | . . . 1 Scrapper 1 | . . . 1 Best Kill Streak 5 | . 5 1 3 Combat Bots Only 3 | . 3 1 3 Max Kills in Single Turn 2 | . 2 1 2 Gunslinging . | . . . . Exploded . | . . . . Melee 2 | . . . 2 Uniques/NPCs Destroyed . | . . . . Combat | -11 -10 -10 -7 -------- Run | Yrd Mat Sub Scr Hostile Shots Fired 172 | . 84 6 82 Missed 42 | . 19 . 23 Hits 130 | . 65 6 59 Projectile 130 | . 65 6 59 Critical Strikes 3 | . . 1 2 Damage Taken 1738 | . 680 156 902 Core 251 | . 70 . 181 Absorbed by Shields . | . . . . Regen/Repaired (Parts) 15 | . . . 15 Core Remaining (%) 100 | 100 . . . Volleys Fired 118 | . 102 5 11 Largest 2 | . 2 2 1 Hottest 100 | . 40 100 30 Shots Fired 162 | . 142 9 11 Gun 91 | . 74 7 10 Cannon 68 | . 66 2 . Launcher 2 | . 2 . . Special 1 | . . . 1 Kinetic 157 | . 140 7 10 Thermal 2 | . . 2 . Explosive 2 | . 2 . . Electromagnetic . | . . . . Robot Hit Streak 14 | . 12 14 6 Robot Miss Streak 3 | . 3 1 1 Penetration Max . | . . . . Secondary Targets 1 | . 1 . . Max Gunslinging Chain 1 | . 1 . . Shots Hit Robots 94 | . 69 7 18 Core Hits 40 | . 30 3 7 Critical Kills . | . . . . Critical Parts Destroyed 1 | . . . 1 Critical Strikes 1 | . . . 1 Destroy 1 | . . . 1 Melee Attacks 18 | . . . 18 Impact . | . . . . Slashing 18 | . . . 18 Piercing . | . . . . Sneak Attacks . | . . . . Combat Hostiles . | . . . . Follow-up Attacks 1 | . . . 1 Damage Inflicted 1666 | . 1031 109 526 Guns 819 | . 635 55 129 Cannons 438 | . 384 54 . Explosions . | . . . . Melee 397 | . . . 397 Ramming 12 | . 12 . . Kinetic 1203 | . 1019 55 129 Thermal 54 | . . 54 . Explosive . | . . . . Electromagnetic . | . . . . Impact . | . . . . Slashing 397 | . . . 397 Piercing . | . . . . Highest Corruption 3 | . 3 3 . Average Corruption 2 | . 2 3 . Corruption Purged . | . . . . Corruption Blocked . | . . . . Effects 31 | . 23 8 . Message Errors 10 | . 7 3 . Matter Fused 6 | . 5 1 . Heat Flow Errors 3 | . 3 . . Energy Discharges 5 | . 2 3 . Parts Rejected 1 | . 1 . . Data Loss (minor) 2 | . 2 . . Misfires 4 | . 3 1 . Overload Shots . | . . . . Overflow Damage 6 | . 3 . 3 Projectiles 3 | . 3 . . Explosions . | . . . . Melee 3 | . . . 3 Knockbacks 8 | . 8 . . Impact . | . . . . Kinetic 8 | . 8 . . Secondary . | . . . . Self-Inflicted Damage . | . . . . Shots . | . . . . Rammed 2 | . 2 . . Targets Rammed 2 | . 2 . . Kicked . | . . . . Crushed . | . . . . Highest Temperature 249 | . 198 249 56 Average Temperature 51 | . 39 154 27 Received Heat Transfer 1036 | . 303 314 419 Effects 1 | . . 1 . Energy Bleed 1 | . . 1 . Siege Activations . | . . . . Martial Activations . | . . . . Shielding Activations . | . . . . Robots Disrupted . | . . . . Combat Hostiles . | . . . . Robots Corrupted . | . . . . Combat Hostiles . | . . . . Parts Fried . | . . . . Impact Corruptions . | . . . . Robots Melted . | . . . . Combat Hostiles . | . . . . Parts Melted 3 | . . 1 2 Heat Transferred 74 | . . 74 . Parts Sabotaged . | . . . . Parts Stolen . | . . . . Parts Stripped . | . . . . Power Chain Reactions . | . . . . Alert | -11 -10 -10 -7 ------- Run | Yrd Mat Sub Scr Maximum Alert Level . | . . . . Low Security (%) 100 | 100 100 . . Level 1 . | . . . . Level 2 . | . . . . Level 3 . | . . . . Level 4 . | . . . . Level 5 . | . . . . High Security . | . . . . Max Security . | . . . . Peak Influence 114 | . 114 . . Initial . | . . . . Average 39 | . 39 . . Influence Increases 537 | . 537 . . Destroy 0b10 Robot/C 320 | . 320 . . Destroy 0b10 Robot/NC 30 | . 30 . . Destroy Leader 82 | . 82 . . Successful Hack 33 | . 33 . . Disable Machine 30 | . 30 . . Destroy Structure 12 | . 12 . . Lose Combat Pursuer 30 | . 30 . . Influence Decreases 537 | . 427 110 . Entered New Map 54 | . . 54 . Time Decay 463 | . 407 56 . Lost Part 20 | . 20 . . Squads Dispatched 4 | . 4 . . Investigation 1 | . 1 . . Extermination . | . . . . Reinforcement 3 | . 3 . . Assault . | . . . . Garrison . | . . . . Intercept . | . . . . Searches Triggered . | . . . . Construction Impeded . | . . . . Haulers Reinforced . | . . . . Active Scanning Responses . | . . . . Cargo Convoy Interrupts . | . . . . Stealth | -11 -10 -10 -7 --------- Run | Yrd Mat Sub Scr Distress Signals 1 | . 1 . . Communications Jammed . | . . . . Distress Signals . | . . . . Times Spotted 66 | . 33 1 32 Peak Tracking Total 8 | . 5 1 8 Tactical Retreats 3 | . 2 . 1 Traps | -11 -10 -10 -7 ------- Run | Yrd Mat Sub Scr Traps Triggered 3 | . 3 . . Indirectly . | . . . . Trap Hack Attempts . | . . . . Triggered . | . . . . Disarmed . | . . . . Reprogrammed . | . . . . Reused . | . . . . Traps Extracted . | . . . . Installed . | . . . . Triggered . | . . . . Machines | -11 -10 -10 -7 ---------- Run | Yrd Mat Sub Scr Machines Disabled 5 | . 2 . 3 Max in Single Turn 1 | . 1 . 1 Machines Repaired . | . . . . Machines Dismantled . | . . . . Machines Sabotaged . | . . . . Overloaded Fab Kills . | . . . . Hacking | -11 -10 -10 -7 --------- Run | Yrd Mat Sub Scr Machines Accessed 9 | . 6 1 2 Terminals 6 | . 6 . . Fabricators . | . . . . Repair Stations . | . . . . Recycling Units . | . . . . Scanalyzers . | . . . . Garrison Access . | . . . . Total Hacks 28 | . 20 3 5 Successful 15 | . 7 3 5 Failed 13 | . 13 . . Catastrophic 2 | . 2 . . Database Lockouts . | . . . . Manual 19 | . 19 . . Terminals 20 | . 20 . . Fabricators . | . . . . Repair Stations . | . . . . Recycling Units . | . . . . Scanalyzers . | . . . . Garrison Access . | . . . . Terminal Hacks 11 | . 3 3 5 Record 7 | . . 3 4 Robot Analysis 1 | . 1 . . Open Door 1 | . . . 1 Terminal Index 1 | . 1 . . Zone Layout 1 | . 1 . . Fabricator Hacks . | . . . . Repair Station Hacks . | . . . . Recycling Unit Hacks . | . . . . Scanalyzer . | . . . . Garrison Access Hacks . | . . . . Unauthorized Hacks 4 | . 4 . . Terminals 4 | . 4 . . Botnet 3 | . 3 . . Operators 1 | . 1 . . Fabricators . | . . . . Repair Stations . | . . . . Recycling Units . | . . . . Scanalyzers . | . . . . Garrison Access . | . . . . Data Cores Recovered . | . . . . Used . | . . . . Hacking Detections 5 | . 5 . . Full Trace Events . | . . . . Feedback Events . | . . . . Feedback Blocked . | . . . . Robot Schematics Acquired . | . . . . Robots Built . | . . . . Authchips . | . . . . Time . | . . . . Total Robot Build Rating . | . . . . Part Schematics Acquired . | . . . . Parts Built . | . . . . Authchips . | . . . . Time . | . . . . Total Part Build Rating . | . . . . Parts Repaired . | . . . . Time . | . . . . Parts Recycled . | . . . . Recycled Matter . | . . . . Retrieved Matter . | . . . . Retrieved Components . | . . . . Parts Scanalyzed . | . . . . Part Schematics Acquired . | . . . . Parts Damaged . | . . . . Bothacking | -11 -10 -10 -7 ------------ Run | Yrd Mat Sub Scr Used RIF Installer . | . . . . Robots Hacked . | . . . . Non-combat . | . . . . Combat . | . . . . Robot Hacks Applied . | . . . . Relay Couplers Released . | . . . . Fabnet Peak Effective % . | . . . . Robots Rewired . | . . . . Allies Hacked . | . . . . Hacks Repelled . | . . . . Allies | -11 -10 -10 -7 -------- Run | Yrd Mat Sub Scr Total Allies . | . . . . Largest Group . | . . . . Highest-Rated Group . | . . . . Highest-Rated Ally . | . . . . Total Orders . | . . . . Ally Attacks 14 | . . . 14 Total Damage 655 | . . . 655 Kills 5 | . . . 5 Allies Corrupted . | . . . . Allies Melted 1 | . . . 1 Turrets Deployed 1 | . . . 1 Intel | -11 -10 -10 -7 ------- Run | Yrd Mat Sub Scr Active Infowar (turns) 3261 | . . 409 2852 Structural 3261 | . . 409 2852 Robot Analysis Total 1 | . 1 . . Derelict Logs Recovered 2 | . . . 2 Drone Launches . | . . . . Drone Recoveries . | . . . . Exploration | -11 -10 -10 -7 ------------- Run | Yrd Mat Sub Scr Turns Passed 5622 | 3 1724 425 3470 Spaces Moved 3089 | 3 638 253 2195 Core . | . . . . Treads 2717 | . 542 253 1922 Legs 99 | 3 96 . . Wheels . | . . . . Hover 273 | . . . 273 Flight . | . . . . Fastest Speed 56 | 120 120 160 56 Average Speed 153 | 120 163 160 149 Slowest Speed 190 | 120 190 160 170 Overloaded Moves . | . . . . Propulsion Burnouts . | . . . . Robots Hopped . | . . . . Potential Cave-ins . | . . . . Cave-ins Triggered . | . . . . Exploration Rate (%) 47 | 2 83 15 90 Regions Visited 3 Branch Regions 2 Pre-discovered Areas 1 | . . 1 . Known Exits Taken . | . . . . Unknown Exits Taken 3 | 1 1 1 . Scrap Searched 8 | . . 3 5 Spaces Dug 2 | . . . 2 Terrain Destroyed 20 | . 18 . 2 Melee 2 | . . . 2 Projectile . | . . . . AOE 18 | . 18 . . Terrain Rammed . | . . . . Walls Destroyed . | . . . . Machines Disabled . | . . . . Actions | -11 -10 -10 -7 --------- Run | Yrd Mat Sub Scr Total 3847 | 2 1178 266 2401 Wait 403 | . 395 . 8 Move 3086 | 2 637 252 2195 Hop . | . . . . Pick Up 87 | . 18 3 66 Fast Attach 11 | . 6 . 5 Attach 11 | . 4 1 6 Detach 4 | . . . 4 Swap 9 | . 2 3 4 Drop 99 | . 12 2 85 Fire 118 | . 102 5 11 Melee 17 | . . . 17 Ram . | . . . . Kick . | . . . . Crush 2 | . 2 . . Escape Stasis . | . . . . Rewire . | . . . . Trap . | . . . . Miscellaneous . | . . . . Route ------- -11/Scrapyard -10/Materials (discovered 6 exits: *Mat x3 / *Min x2 / *Sub) -10/Subcaves -7/Scraptown (discovered 2 exits: [*Fac x2]) History --------- Turn | Location | Event 1 | -11/Scrapyard | Discovered new exit (range 3) 4 | -11/Scrapyard | Entered Materials 138 | -10/Materials | Discovered new exit (range 3) 309 | -10/Materials | Build established: Mutant 637 | -10/Materials | Discovered new exit (range 15) 874 | -10/Materials | Discovered new exit (range 15) 905 | -10/Materials | Discovered new exit (range 15) 1182 | -10/Materials | Identified exit to Mines 1193 | -10/Materials | Identified exit to Materials 1538 | -10/Materials | Discovered exit to Materials (range 16) 1717 | -10/Materials | Discovered new exit (range 8) 1728 | -10/Materials | Entered Subcaves 1729 | -10/Subcaves | Approached by a straggling Scientist 1821 | -10/Subcaves | Visited Clippyterm 1826 | -10/Subcaves | Learned location of Deep Caves (-6) 1929 | -10/Subcaves | Scientist uncovered a shortcut to Scraptown 2054 | -10/Subcaves | Disturbed a concealed Subdweller 2153 | -10/Subcaves | Entered Scraptown 2153 | -7/Scraptown | System corruption cleaned by C-Scrubber 2315 | -7/Scraptown | Visited UFD Registry 2328 | -7/Scraptown | Registered with UFD as "Slugsink" 2371 | -7/Scraptown | Visited Infowarlord's Domain 2400 | -7/Scraptown | Visited Abandonware Association 2416 | -7/Scraptown | Learned abandonware demo "OVRCLOCK.EXE" 2424 | -7/Scraptown | Learned abandonware demo "TRNCOAT.EXE" 2464 | -7/Scraptown | Visited Curators Association 2496 | -7/Scraptown | Visited Scrapoid Research Area 2672 | -7/Scraptown | Visited Research Penetration Think Tank 2705 | -7/Scraptown | Visited Sword Containment 2776 | -7/Scraptown | Visited Observation Area 2821 | -7/Scraptown | Visited Scrap Suit Storage 2850 | -7/Scraptown | Visited DA-N13 Charitable Foundation 3037 | -7/Scraptown | Discovered new exit (range 5) 3386 | -7/Scraptown | Found Scrap Suit 3389 | -7/Scraptown | Found Scrap Suit 3393 | -7/Scraptown | Found Scrap Suit 3395 | -7/Scraptown | Found Scrap Suit 3401 | -7/Scraptown | Found Scrap Suit 3535 | -7/Scraptown | Found DCF Scrap (30 items) 4057 | -7/Scraptown | Visited Awakened 4103 | -7/Scraptown | Visited Junk Repository 4148 | -7/Scraptown | Visited CPS Storage 4206 | -7/Scraptown | Heard Great Nut preacher, LISTEN AND RECITE! 4227 | -7/Scraptown | Visited Assassins FH 4313 | -7/Scraptown | Scanned Subdweller tech in exchange for log data 4322 | -7/Scraptown | Learned location of 1 exit from Lower Caves 4323 | -7/Scraptown | Learned Research garrison access intel 4341 | -7/Scraptown | Discovered new exit (range 13) 4722 | -7/Scraptown | Visited Red Mages 4758 | -7/Scraptown | Found Relay Coupler [Proto] 4761 | -7/Scraptown | Found Relay Coupler [Proto] 4820 | -7/Scraptown | Visited The Evicted 4852 | -7/Scraptown | Visited Symbiants 5211 | -7/Scraptown | Met Optimus 5211 | -7/Scraptown | Accepted into 0bPrime 5301 | -7/Scraptown | Build established: Scrapper 5335 | -7/Scraptown | Civil war broke out across Scraptown 5349 | -7/Scraptown | Found Deploy-a-Sentry 5405 | -7/Scraptown | Lost 4 allies 5431 | -7/Scraptown | DAS Turret deployed 5484 | -7/Scraptown | Lost 3 allies 5593 | -7/Scraptown | Core integrity fell below 50% 5618 | -7/Scraptown | Core integrity fell below 20% 5623 | -7/Scraptown | Destroyed by D0-ZLQ(j) with Overtuned Pulse Rifle Last Messages --------------- 05589_ Bolt Gun destroyed. 05589_ Acquired 5 matter. 05590_ Scrap Suit secures Barrage Gun. 05595_ Penetrated by Bolt. 05597_ Bolt penetrates Wall. 05597_ Penetrated by Bolt. 05598_ Imp. Hover Unit destroyed. 05599_ Bolt penetrates Wall. Companion Sword: "Do I look like a digging implement?" 05601_ Bolt penetrates Wall. 05608_ Machine disabled. 05608_ Bolt penetrates Wall. 05612_ Bolt penetrates Machine. 05612_ Dropped Barrage Gun. 05613_ Scrap Suit secures Barrage Gun. 05617_ TC-RF6(j): "To all who oppose us, at least your donations are appreciated." 05618_ D0-ZLQ(j) heat short circuits Lgt. Deuterium Engine. Companion Sword: "You can run but you can't hide!" 05620_ Critical hit (Burn: +50). Map ----- +----------------------------------------------------+ | | | | | ?????????????????????????????????????????????????? | | ?????????????????????????????????????????????????? | | ?????????????????????????????????????????????????? | | ?????????????????????????????????????????????????? | | ?????????????????????????????????????????????????? | | ?????????????????????????????????????????????????? | | ?????????????????????????????????????????????????? | | ?????????????????????????????????????????????????? | | ?????????????????????????????????????????????????? | | ?????????????????????????????????????????????????? | | ????????????????????????????????????#######??????? | | ????????????????????????????????????#######??????? | | ?????#####################?######???##"""##??????? | | ?????#############################??##" "##??????? | | ?????#"""##"""##""|##"""#####==####### < ###?????? | | ????##"" ##""!##""|##!!"####!![[###[!#%%%###?????? | | ????##"" =%!%=%=[!!!=!![!=!=!![%!!*##?????? | | ????## [!![! %==%!%%!%!=%=[[*==%##?????? | | ????#######################![!%!###!#=######?????? | | ????#########################=!!############?????? | | ?????????#########?##########=[###???????????????? | | ????????? ########"""""""""##%!##????????????????? | | ????????? " %"##" j;; !##????????????????? | | ??????## #" "##" """""@"## %##????????????????? | | #####?#####X ###"?????" "## =#"""???"?"????????? | | #####?##" "##"?????" "##% #" "?? ? ?????????? | | ##?##"!! "##"?????" "## #" ?" " ##??????? | | ##?##"!*= "##" ????" "##![#" " " ##??????? | | % ##?##"![%! !"##" """"" "##!%# " " " ##??????? | | = ##?##"!%* %"##" "##!!# " ##??????? | | ##?###[!== *###"" ## " #???????? | | ##?## !%![ ## "#%="""""""""?????????? | | ###########!#"######### ####"*="# #####?########## | | ###########%[########## ###""[%!# ################ | | """""""""""! % """ """ %" ! %" "####### ## | | %=!= [==%!*! =*%! %[=! "## ## ## | | =* %! =!==*= ![ !!//=[! "## ## ## | | ! [ =!==!%= !%= !! ///![[ "## X# ## | | =*![= *[=* !!!* !! % !"## ## | | %=%%!! ! ==! !! ## ## | | [ [! """"""" """"""""""""""" [ ! ## ## ## | | * """"""""""""""""""""""" !["## ## ## | | ""###### ################"" =[%*####### ## | | !""# ###########"" [===############### | | !""# X"#???????##""!!!=[!##"""""""###### | | !""# "" "" ##?????####""[]![= ## """"""##???? | | ""# "" "" X"##########""%!]% "#% ""##???? | | ""# " " ######### #""%=! %"[# ""##???? | +----------------------------------------------------+ Best States ------------- Heat Dissipation 25 Energy Generation 16 Energy Capacity 290 Matter Stores 300 Matter Capacity 300 Sight Range 16 Terrain Scan Density 10 Armor Coverage 150 Propulsion Shielding 33 Evasion (%) 55 Recoil Reduction 2 Item Schematics ----------------- None Robot Schematics ------------------ None Fabricated ------------ Nothing Repaired ---------- Nothing Alien Tech Used ----------------- None Achievements -------------- None Challenges ------------ None Game ------ Seed CountertargetingRapidTether Manual? 0 Play Time 00:35:56 Cumulative 490.1 hours Start 2025.05.27 @ 03:38:37 End 2025.05.27 @ 04:35:36 Sessions 1 Manual Loads 0 Difficulty Rogue Special Mode None Game No. 541 Rogue 541 Adventurer 0 Explorer 0 Win Type - Total 14 Types 9/0/4/1/0/0/0/0/0/0 Lore% 73 Gallery% 79 Achievement% 82 Wizard Run 0 Options --------- Layout 0 ASCII 0 Keyboard 0 Movement Numpad Keybinds 0 Fullscreen 1 Font 18/SmallcapsGlow Map View 76x50 Zoom Use 0% Tactical HUD 1 Map Filters NONE Filters NONE Steam 1 RUN: bc73dba2-8c3c-4d53-9626-30171c3d0187